[Event "1000GM Schev-A February 2024"]
[Site "Santa Clara"]
[Date "2024.02.18"]
[Round "3.2"]
[White "Sivakumar, Shaashwath"]
[Black "Zuluaga Mancilla, Cesar"]
[Result "1-0"]
[ECO "B28"]
[WhiteElo "2205"]
[BlackElo "2251"]
[Annotator "TA"]
[PlyCount "71"]
[EventDate "2024.02.13"]
[EventType "schev"]
[EventCountry "USA"]
[SourceTitle "playchess.com"]
[Source "ChessBase"]
[SourceQuality "1"]
[TimeControl "5400+30"]

{[%evp 9,71,33,34,10,23,16,13,7,29,-12,-2,-14,0,-27,-17,-8,0,0,37,18,33,9,28,28,39,35,54,50,56,34,49,0,54,54,58,47,53,8,40,0,39,0,0,0,50,40,0,4,78,41,46,41,592,576,570,570,737,732,694,390,29993,29994,29994,29995]} 1. e4 {[%emt 0:01:11]} c5 {[%emt 0:09:21]} 2. Nf3 {[%emt 0:00:09]} a6 {[%emt 0:00:22]} 3. g3 {[%emt 0:00:38]} d6 {[%emt 0:00:30]} 4. Bg2 {[%emt 0:00:22]} e5 {[%emt 0:00:09]} 5. O-O {[%emt 0:00:48]} Nc6 {[%emt 0:00:50]} 6. Nc3 {[%emt 0:00:38]} Nf6 {[%emt 0:00:09]} 7. Re1 {[%emt 0:01:33]} Be7 {[%emt 0:00:13]} 8. Nd5 {[%emt 0:00:45] The position is equal.} O-O {[%emt 0:05:04]} 9. a3 {[%emt 0:03:57]} Nxd5 {[%emt 0:04:03]} 10. exd5 {[%emt 0:00:06]} Nd4 {[%emt 0:02:40]} 11. b4 {[%emt 0:23:28]} Nxf3+ {[%emt 1:12:39]} 12. Qxf3 {[%emt 0:05:11]} cxb4 {[%emt 0:00:00]} 13. axb4 {[%emt 0:58:14]} Bf6 {[%emt 0:00:00][%cal Oe5e4]} 14. Qb3 {[%emt 0:00:00]} Bf5 {[%emt 0:00:00]} 15. Ra2 {[%emt 0:00:00]} Qc7 {[%emt 0:00:00]} 16. d3 {[%emt 0:00:00]} Rfe8 {[%emt 0:00:00]} 17. Bd2 {[%emt 0:00:00]} Rac8 {[%emt 0:00:00]} 18. c4 {[%emt 0:00:00][%cal Bc2c4,Bc4c5][%mdl 32]} h6 {[%emt 0:00:00]} 19. h4 {[%emt 0:00:00]} g5 {[%emt 0:00:00]} 20. h5 {[%emt 0:00:00]} (20. hxg5 $14 Bxg5 21. Qc3) 20... Bg4 {[%emt 0:00:00] [#]} (20... Bg7 $11) 21. c5 $1 $14 {[%emt 0:00:00]} Bxh5 {[%emt 0:00:00]} (21... Bg7 22. Rc1) 22. Rc1 {[%emt 0:00:00]} Bg6 {[%emt 0:00:00]} 23. Bh3 {[%emt 0:00:49] next cxd6 is good for White.} Ra8 {[%emt 0:00:00]} 24. Be3 {[%emt 0:03:52]} e4 {[%emt 0:00:00]} 25. cxd6 {[%emt 0:00:08]} Qxd6 {[%emt 0:00:00]} 26. Bc5 {[%emt 0:00:12]} Qd8 {[%emt 0:00:00]} ({Black should try} 26... Qe5 $1 $11) 27. d6 $36 {[%emt 0:01:01][%cal Bd5d6,Bd6d7][%mdl 2080] Threatens to win with d7. White is pushing.} exd3 {[%emt 0:00:00][%cal Og5g4]} 28. d7 {[%emt 0:00:10]} Re4 {[%emt 0:00:00] [#]} 29. Qd5 $1 {[%emt 0:01:02] White is more active.} (29. Qxd3 $2 Re1+ 30. Rxe1 Bxd3 $17) 29... g4 {[%emt 0:00:00]} 30. Bg2 {[%emt 0:00:05] Really sharp!} Re2 $2 {[%emt 0:00:00][%mdl 8192] Black cannot hold the game after this.} ({Black should play} 30... Re6 $1 $14) 31. Rxe2 $18 {[%emt 0:00:09]} dxe2 {[%emt 0:00:00]} 32. Re1 $1 {[%emt 0:00:10][%cal Bc1e1,Be1e2,Be2e8][%mdl 32]} (32. Qxb7 Rb8 33. Qxa6 Bf5 $16) 32... Qc7 {[%emt 0:00:00]} 33. Rxe2 {[%emt 0:00:44] White threatens Re8+ and mate.} Rd8 {[%emt 0:00:01]} 34. Bd4 {[%emt 0:01:26]} (34. Qxb7 Qxd7 35. Qxd7 (35. Qxa6 Bd3 $11) 35... Rxd7 $11) 34... Bg5 {[%emt 0:04:27]} (34... Rxd7 35. Bxf6 Kf8 (35... Qc1+ $2 36. Kh2 $18) 36. Qc5+ Qxc5 37. bxc5 $18) (34... Qxd7 $18 35. Bxf6 (35. Qxd7 Rxd7 36. Bxf6 Kh7 $18) 35... Qxd5 36. Bxd5 Bd3 (36... Rxd5 37. Re8+ Kh7 38. Rh8#) 37. Bxd8 Bxe2 38. Bxb7 Kf8) 35. Re8+ {[%emt 0:00:24]} ({Not} 35. Qxb7 Qxb7 (35... Qxd7 $2 36. Qxd7 Kf8 37. Qxg4 $18) 36. Re8+ Kh7 37. Bxb7 Bf5 38. Rxd8 (38. Bxa6 Rxd7 39. Bc8 Rxd4 $11) 38... Bxd8 39. Bxa6 Bxd7 $18) 35... Kh7 {[%emt 0:00:05]} 36. Be4 {[%emt 0:00:17] Weighted Error Value: White=0.33/Black=0.53.  Loses game:     	---       	Black=1      Mistake:       	White=1     	Black=2      Inaccurate:     	White=5     	Black=3      OK:         	White=8     	Black=9      Best:        	White=2     	---        Strong:       	White=2     	---} ({Weaker is} 36. Qxb7 Qxb7 (36... Qxd7 37. Qxd7 Rxe8 38. Qxe8 f6 39. Qf8 h5 40. Bd5 Bd3 41. Qg8+ Kh6 42. Bf7 h4 43. Qh8+ Bh7 44. Qf8#) 37. Bxb7 Bd3 $16) 1-0

[Event "1000GM Schev-A February 2024"]
[Site "Santa Clara"]
[Date "2024.02.18"]
[Round "3.3"]
[White "Dominguez Aguilar, Guillermo"]
[Black "Zhou, Ruoyu"]
[Result "1/2-1/2"]
[ECO "E05"]
[WhiteElo "2319"]
[BlackElo "2112"]
[Annotator "RC"]
[PlyCount "87"]
[EventDate "2024.02.13"]
[EventType "schev"]
[EventCountry "USA"]
[SourceTitle "playchess.com"]
[Source "ChessBase"]
[SourceQuality "1"]
[TimeControl "5400+30"]

1. c4 {[%emt 0:05:06]} e6 {[%emt 0:04:18]} 2. Nf3 {[%emt 0:00:37]} d5 {[%emt 0:00:16]} 3. g3 {[%emt 0:00:07]} Be7 {[%emt 0:00:13]} 4. Bg2 {[%emt 0:00:10]} Nf6 {[%emt 0:00:10]} 5. O-O {[%emt 0:00:15]} O-O {[%emt 0:00:09]} 6. d4 {[%emt 0:00:45]} dxc4 {[%emt 0:00:13]} 7. Ne5 {[%emt 0:00:20]} Nc6 {[%emt 0:01:25]} 8. Nxc6 {[%emt 0:00:50]} bxc6 {[%emt 0:00:10]} 9. Na3 {[%emt 0:00:42]} Bxa3 {[%emt 0:05:11]} 10. bxa3 {[%emt 0:00:37]} Rb8 {[%emt 0:01:42]} 11. Qc2 {[%emt 0:01:36]} Ba6 {[%emt 0:10:42]} 12. Rd1 {[%emt 0:01:18]} Nd5 {[%emt 0:05:29]} 13. e4 {[%emt 0:00:52]} Nb6 {[%emt 0:00:47]} 14. a4 {[%emt 0:00:49]} Qe7 {[%emt 0:03:54]} 15. a5 {[%emt 0:03:06]} Nd7 {[%emt 0:00:12]} 16. Qc3 {[%emt 0:00:44]} Rfd8 {[%emt 0:11:43]} 17. Ba3 {[%emt 0:02:12]} Qe8 {[%emt 0:00:12]} 18. e5 {[%emt 0:08:31]} Nf8 {[%emt 0:02:16]} 19. Bc5 {[%emt 0:01:16]} Rb7 {[%emt 0:03:16]} 20. Be4 {[%emt 0:00:38]} Ng6 {[%emt 0:05:18]} 21. Qc2 {[%emt 0:12:35]} h6 {[%emt 0:04:46]} 22. Qa4 {[%emt 0:00:59]} Bb5 {[%emt 0:03:36]} 23. Qa3 {[%emt 0:00:11]} Ba6 {[%emt 0:02:06]} 24. Qf3 {[%emt 0:09:30]} Ne7 {[%emt 0:00:27]} 25. Bc2 {[%emt 0:01:14]} Nd5 {[%emt 0:12:59]} 26. Qe4 {[%emt 0:03:55]} g6 {[%emt 0:00:18]} 27. Qh4 {[%emt 0:07:29]} Kg7 {[%emt 0:05:02]} 28. Ba3 {[%emt 0:06:26]} Rbb8 {[%emt 0:03:49]} 29. Re1 {[%emt 0:02:11]} c3 {[%emt 0:03:22]} 30. Bc1 {[%emt 0:03:26]} Qh8 {[%emt 0:00:20]} 31. a3 {[%emt 0:00:29]} Bc4 {[%emt 0:02:00]} 32. Qe4 {[%emt 0:03:15]} Ne7 {[%emt 0:02:56]} 33. Qf3 {[%emt 0:00:52]} Nd5 {[%emt 0:00:19]} 34. h4 {[%emt 0:00:50]} Kg8 {[%emt 0:02:07]} 35. Re4 {[%emt 0:00:50]} Qg7 {[%emt 0:01:17]} 36. Rg4 {[%emt 0:00:28]} h5 {[%emt 0:00:41]} 37. Re4 {[%emt 0:01:50]} Bb3 {[%emt 0:01:34]} 38. Bd3 {[%emt 0:00:02]} Ne7 {[%emt 0:00:15]} 39. Bg5 {[%emt 0:01:12]} Re8 {[%emt 0:00:39]} 40. Ree1 {[%emt 0:02:36]} Bd5 {[%emt 0:00:37]} 41. Qf4 {[%emt 0:01:35]} Nf5 {[%emt 0:00:28]} 42. Rec1 {[%emt 0:02:06]} Rb3 {[%emt 0:00:35]} 43. f3 {[%emt 0:03:25]} c5 {[%emt 0:04:11]} 44. Bf6 {[%emt 0:04:43]} 1/2-1/2

[Event "1000GM Schev-A February 2024"]
[Site "Santa Clara"]
[Date "2024.02.18"]
[Round "3.4"]
[White "Jimenez Garcia, Emmanuel"]
[Black "Rajaram, Rohan"]
[Result "1-0"]
[ECO "D02"]
[WhiteElo "2394"]
[BlackElo "2151"]
[Annotator "TA"]
[PlyCount "67"]
[EventDate "2024.02.13"]
[EventType "schev"]
[EventCountry "USA"]
[SourceTitle "playchess.com"]
[Source "ChessBase"]
[SourceQuality "1"]
[TimeControl "5400+30"]

{[%evp 9,67,0,0,0,9,0,15,-12,103,106,133,148,268,270,253,285,288,284,266,241,333,295,456,465,447,443,684,679,656,447,424,275,474,447,801,834,716,651,884,872,12808,12809,29989,29990,29992,29993,29995,29996,29996,29991,29991,29988,29988,29987,29987,29988,29995,29996,29996,29997]} 1. d4 {[%emt 0:04:32]} d5 {[%emt 0:00:15]} 2. Nf3 {[%emt 0:00:07]} Nf6 {[%emt 0:00:06]} 3. c3 {[%emt 0:00:05]} e6 {[%emt 0:02:30]} 4. Bg5 {[%emt 0:00:31]} Be7 {[%emt 0:00:36]} 5. Nbd2 {[%emt 0:00:28]} O-O {[%emt 0:00:24]} 6. e3 {[%emt 0:00:20]} h6 {[%emt 0:00:26]} 7. Bf4 {[%emt 0:02:09]} c5 {[%emt 0:01:00]} 8. g4 {[%emt 0:04:56] The position is equal.} Nh7 {[%emt 0:15:00]} (8... Nxg4 9. Rg1 f5 10. h3 $16) (8... Qb6 $11) 9. h4 $16 {[%emt 0:02:18]} f6 {[%emt 0:01:19][%cal Bf7f6,Bf6f5][%mdl 32]} 10. Bd3 {[%emt 0:01:19][%cal Og4g5] White has more active pieces.} e5 {[%emt 0:02:37]} (10... Nc6 $16 {might work better.}) 11. dxe5 $18 {[%emt 0:01:54]} Bxg4 {[%emt 0:00:22]} 12. Qb1 {[%emt 0:00:13]} (12. Qc2 $6 f5 $16) 12... f5 {[%emt 0:01:27] [#]} 13. Nh2 $1 {[%emt 0:02:50] aiming for Nxg4.} Bh3 {[%emt 0:02:19]} 14. Nhf1 {[%emt 0:00:25]} Bxf1 {[%emt 0:04:27]} 15. Nxf1 {[%emt 0:02:31]} (15. Kxf1 Qd7 $16) 15... Bxh4 {[%emt 0:06:28]} (15... Rf7 {was necessary.} 16. Bxf5 Nf8) 16. Bxf5 {[%emt 0:00:33]} Ng5 {[%emt 0:00:14][%cal Ob8c6]} 17. Nd2 {[%emt 0:04:17][%cal Bf1d2,Bd2e4,Be4c5][%mdl 32]} (17. Rxh4 Nf3+ 18. Ke2 Nxh4 19. Be6+ Kh8 $19) 17... Ne4 {[%emt 0:03:12]} (17... Qe7 $142 18. Rxh4 Nc6) 18. Nxe4 {[%emt 0:00:48]} Rxf5 {[%emt 0:04:51]} 19. Nxc5 {[%emt 0:07:23]} Rf7 {[%emt 0:03:27]} 20. e6 {[%emt 0:09:11]} Rf8 {[%emt 0:02:09]} (20... Rxf4 {is a better defense.} 21. exf4 Qf6) 21. Qg6 {[%emt 0:04:44][%cal Oe1c1] 0-0-0! would now be deadly.} ({Weaker is} 21. Nxb7 Bxf2+ 22. Kd2 (22. Kxf2 Qb6 $16) 22... Qf6 $18) 21... Qe7 {[%emt 0:03:55]} (21... Bg5 $142 22. Nxb7 Qe8 23. Qxe8 Rxe8 24. Bxg5 hxg5) 22. O-O-O {[%emt 0:03:06]} ({Not} 22. Bxh6 Rf6 23. Qxg7+ Qxg7 24. Bxg7 Bxf2+ 25. Ke2 Kxg7 $18) 22... Rf6 {[%emt 0:04:15]} 23. Qg4 {[%emt 0:00:03]} Bxf2 {[%emt 0:03:14]} 24. Rxd5 {[%emt 0:01:18][%cal Oc5e4] Hoping for Ne4!} b6 {[%emt 0:02:03]} 25. Ne4 {[%emt 0:00:21]} Bxe3+ {[%emt 0:00:14]} 26. Bxe3 {[%emt 0:00:06] White mates.} Rxe6 {[%emt 0:00:07] [#]} 27. Rd8+ $3 {[%emt 0:00:21][%mdl 512]} Qxd8 {[%emt 0:00:28]} (27... Kf7 28. Rf1+) 28. Qxe6+ {[%emt 0:00:06]} Kh8 {[%emt 0:00:44]} 29. Rxh6+ {[%emt 0:00:12]} gxh6 {[%emt 0:00:07]} 30. Bd4+ {[%emt 0:00:10]} Qxd4 {[%emt 0:00:21]} 31. Qxh6+ {[%emt 0:00:36]} Kg8 {[%emt 0:00:07]} 32. Qg6+ {[%emt 0:01:11]} Kh8 {[%emt 0:00:10]} 33. cxd4 {[%emt 0:00:08]} Nd7 {[%emt 0:00:20]} 34. Ng5 {[%emt 0:00:08] Black got outplayed after the opening.   Weighted Error Value: White=0.24 (precise) /Black=0.78.  Mistake:       	---       	Black=6      Inaccurate:     	White=1     	Black=1      OK:         	White=5     	Black=5      Best:        	White=2     	---        Strong:       	White=1     	---} 1-0

[Event "1000GM Schev-A February 2024"]
[Site "Santa Clara"]
[Date "2024.02.18"]
[Round "3.5"]
[White "Sivakumar, Shaaketh"]
[Black "Martin Carmona, Gaston Manuel"]
[Result "0-1"]
[ECO "B12"]
[WhiteElo "2364"]
[BlackElo "2343"]
[Annotator "TA"]
[PlyCount "106"]
[EventDate "2024.02.13"]
[EventType "schev"]
[EventCountry "USA"]
[SourceTitle "playchess.com"]
[Source "ChessBase"]
[SourceQuality "1"]
[TimeControl "5400+30"]

{[%evp 26,106,-12,-26,-8,-18,-10,-72,-32,-22,-43,-27,14,2,22,0,0,0,0,0,-16,-163,393,342,388,398,377,168,121,107,139,134,467,-34,-31,-239,-240,-519,-78,-215,-229,-225,-211,-285,-54,-204,-76,-89,-58,-207,-200,-191,-191,-184,-89,-192,-196,-270,-202,-281,-206,-211,-214,-226,-215,-1145,-1126,-29963,-5824,-29983,-29984,-29984,-29985,-29989,-29988,-29989,-29988,-29988,-29989,-29992,-29993,-29993,-29992]} 1. e4 {[%emt 0:00:03]} c6 {[%emt 0:04:11]} 2. d4 {[%emt 0:00:09]} d5 {[%emt 0:00:05]} 3. e5 {[%emt 0:00:18]} Bf5 {[%emt 0:00:07]} 4. h4 {[%emt 0:00:22]} h5 {[%emt 0:00:09]} 5. Bd3 {[%emt 0:00:24]} Bxd3 {[%emt 0:00:09]} 6. Qxd3 {[%emt 0:00:07] B12: Caro-Kann: Advance Variation.} Qa5+ {[%emt 0:00:05]} 7. Nd2 {[%emt 0:00:22]} e6 {[%emt 0:01:12]} 8. Ngf3 {[%emt 0:00:09]} Nh6 {[%emt 0:01:41]} 9. O-O {[%emt 0:01:12]} Nf5 {[%emt 0:02:11]} 10. c4 {[%emt 0:06:40]} Qa6 {[%emt 0:00:07]} 11. b3 {[%emt 0:00:26]} Be7 {[%emt 0:01:38]} 12. a4 {[%emt 0:01:30] The main line 12.a4 scores better than 12.g3.} Nd7 {[%emt 0:26:08]} 13. Bb2 {[%emt 0:07:01]} O-O {[%emt 0:02:13]} 14. a5 {[%emt 0:09:34]} Rfd8 $146 {[%emt 0:07:08]} ({Predecessor:} 14... Rac8 15. g3 Bb4 16. Bc3 Bxc3 17. Qxc3 c5 18. Kh2 dxc4 19. bxc4 cxd4 20. Nxd4 Nxe5 21. Nxf5 {0-1 Magallanes,R (2032)-Jiganchine,R (2205) Titled Tuesday intern op 27th Dec Early blitz 2022 (5)}) 15. Rfd1 {[%emt 0:05:51]} c5 {[%emt 0:07:46]} 16. Qc2 {[%emt 0:13:43]} (16. Qe2 $11 {remains equal.}) 16... Nxd4 {[%emt 0:10:16]} (16... cxd4 {looks sharper.} 17. Nxd4 Nxh4 18. cxd5 Rac8) 17. Nxd4 {[%emt 0:00:46]} cxd4 {[%emt 0:00:11]} 18. Bxd4 {[%emt 0:00:47]} dxc4 {[%emt 0:06:31]} (18... Nb8 $5) 19. Nxc4 {[%emt 0:01:28]} Bxh4 {[%emt 0:02:41]} 20. Qe2 {[%emt 0:07:18]} g6 {[%emt 0:00:09]} 21. Qe3 {[%emt 0:00:55]} Be7 {[%emt 0:21:50]} 22. Kh1 {[%emt 0:07:25]} Qb5 {[%emt 0:01:06]} 23. Bxa7 {[%emt 0:00:59]} (23. f4 $11) 23... Bc5 $4 {[%emt 0:03:28][%mdl 8192]} (23... Rxa7 $19 {and all is fine.} 24. Qxa7 Bc5) 24. Bxc5 $18 {[%emt 0:00:14]} Nxc5 {[%emt 0:00:01]} 25. Nd6 {[%emt 0:00:23]} Qb4 {[%emt 0:00:29]} 26. Rd4 {[%emt 0:11:55]} (26. Rac1 $142 Rxa5 27. Rd4 Qxb3 28. Qh6) 26... Qxb3 $18 {[%emt 0:00:12]} 27. Qf4 {[%emt 0:00:15]} Rf8 {[%emt 0:01:15]} 28. Rad1 {[%emt 0:00:28]} Rxa5 $2 {[%emt 0:00:27][%mdl 8192]} (28... Qc3 $16 {is more resistant.}) 29. Qf6 $2 {[%emt 0:00:15]} (29. Qh6 $18 Raa8 30. Nxf7 Qxd1+ 31. Rxd1 Rxf7 32. Qxg6+ Rg7 33. Qf6 (33. Qxh5 $2 Rh7 $19)) 29... Nd7 $15 {[%emt 0:00:31]} 30. Qe7 $2 {[%emt 0:01:30]} (30. Qg5 $1 $15 Rd5 (30... Nxe5 31. Ne4 $11) (30... Rxe5 31. Qe7 $17) 31. Rxd5 exd5 32. Rc1) 30... Nxe5 $19 {[%emt 0:00:18]} 31. Ne4 $2 {[%emt 0:00:05] [#]} (31. Qxb7 Qxb7 32. Nxb7) 31... Qa3 $2 {[%emt 0:00:58]} (31... Nc6 $1 $19 {[%cal Rc6e7]} 32. Qd7 Nxd4 33. Qxd4 Qa4 (33... Rf5 $2 34. Re1 $19)) 32. Qh4 {[%emt 0:01:07]} (32. Nf6+ $17 {was the only defense.} Kh8 (32... Kg7 33. Ne8+ Rxe8 34. Qxe8 $17) 33. Rd6) 32... Nc6 $19 {[%emt 0:00:33]} 33. Rd7 {[%emt 0:00:51]} Qb4 {[%emt 0:00:30]} 34. R7d6 {[%emt 0:02:34]} Re5 $2 {[%emt 0:00:26]} (34... g5 $19 35. Nf6+ Kg7 36. Qxb4 Nxb4 37. Nxh5+ Kg6) 35. f3 {[%emt 0:00:35]} (35. Nf6+ $15 Kg7 36. Qxb4 Nxb4 37. Nd7) 35... Qb2 {[%emt 0:00:40]} (35... Rb5 $19 {...Ra8 would now be deadly.} 36. Qf4 Rf5) 36. R6d2 $17 {[%emt 0:02:12]} Qa3 {[%emt 0:00:33]} 37. Rd7 {[%emt 0:00:41]} (37. Nf6+ $15 Kg7 38. Nd7) 37... Rf5 $19 {[%emt 0:00:25]} 38. Ng3 {[%emt 0:01:35]} Rb5 {[%emt 0:00:14]} 39. Ne4 {[%emt 0:01:00]} Qb4 {[%emt 0:00:32]} (39... Qb2 $19 {and Black stays clearly on top.} 40. Qf4 Rf5) 40. Qf4 {[%emt 0:00:25]} (40. Rxb7 $17 Qb2 (40... Rxb7 41. Nf6+ Kg7 42. Nxh5+ Kg8 43. Nf6+ Kg7 44. Nh5+ gxh5 45. Qg5+ Kh7 46. Qxh5+ Kg8 47. Qg5+ Kh7 48. Qh5+ Kg8 49. Qg5+ Kh7 50. Qh5+ $11) 41. Rxb5 Qxb5 42. Rc1) 40... Rf5 $19 {[%emt 0:00:16]} 41. Qg3 {[%emt 0:01:31]} (41. Qh6 {was necessary.}) 41... Qb2 {[%emt 0:00:43]} 42. Qh4 {[%emt 0:02:14]} Qe5 {[%emt 0:00:32]} 43. Rxb7 {[%emt 0:00:13]} Nd4 {[%emt 0:00:40]} 44. Rd7 {[%emt 0:01:12]} Rf4 {[%emt 0:00:08]} 45. Qh3 $2 {[%emt 0:02:24]} (45. Qe1 Nf5 46. Kg1) 45... Nf5 $19 {[%emt 0:00:19]} 46. g3 {[%emt 0:12:22]} Rxf3 {[%emt 0:00:35]} 47. Re1 {[%emt 0:00:00]} Re3 {[%emt 0:00:56]} 48. Rxe3 {[%emt 0:00:00]} Nxe3 {[%emt 0:00:02]} 49. Nd2 {[%emt 0:00:00]} Qa1+ {[%emt 0:00:18]} 50. Kh2 {[%emt 0:00:00]} Ng4+ {[%emt 0:00:05]} 51. Kg2 {[%emt 0:00:00]} Qe1 {[%emt 0:00:39]} 52. Qh4 {[%emt 0:00:00]} Qf2+ {[%emt 0:00:25]} 53. Kh1 {[%emt 0:00:00]} Kg7 {[%emt 0:01:14]} 0-1

[Event "1000GM Schev-A February 2024"]
[Site "Santa Clara"]
[Date "2024.02.19"]
[Round "4.1"]
[White "Zuluaga Mancilla, Cesar"]
[Black "Arutla, Aditya"]
[Result "0-1"]
[ECO "D02"]
[WhiteElo "2251"]
[BlackElo "2132"]
[Annotator "TA"]
[PlyCount "94"]
[EventDate "2024.02.13"]
[EventType "schev"]
[EventCountry "USA"]
[SourceTitle "playchess.com"]
[Source "ChessBase"]
[SourceQuality "1"]
[TimeControl "5400+30"]

{[%evp 9,94,-2,-14,-17,-7,-6,-6,-32,-39,-47,-40,-44,-32,-54,-2,-38,-39,-36,-23,-31,-35,-48,-25,-22,-32,-47,-16,-25,-18,-99,-86,-149,-119,-140,-118,-239,-215,-267,-271,-255,-240,-238,-233,-239,-228,-257,-267,-264,-198,-220,-160,-149,-150,-242,-241,-570,-568,-539,-460,-455,-447,-476,-470,-486,-489,-506,-506,-511,-508,-489,-447,-954,-945,-934,-795,-718,-610,-586,-588,-1673,-897,-897,-890,-29987,-29988,-29988,-29989]} 1. d4 {[%cal Bd2d4,Bd4c5][%mdl 32]} Nf6 2. Nf3 d5 3. Bf4 c5 4. c3 Nc6 {[%cal Bb8c6,Bc6e7,Be7g6][%mdl 32]} 5. dxc5 e6 6. b4 {[%cal Bb2b4,Bb4b5][%mdl 32]} a5 7. b5 Ne7 8. Nbd2 {The position is equal.} Ng6 {[%csl LRc5,LRf4]} 9. Bg3 Bxc5 {[%cal Oe6e5]} 10. e3 O-O 11. Bd3 Nh5 (11... b6 $15) 12. Nb3 Nxg3 13. hxg3 Bd6 14. c4 (14. O-O {simplifies} a4 15. Nbd2 e5 16. Bxg6 hxg6 17. c4) 14... Bb4+ (14... dxc4 {simplifies} 15. Bxc4 Bb4+ 16. Nbd2 b6) 15. Ke2 Qf6 16. Rc1 Rd8 17. cxd5 Rxd5 18. Qc2 e5 19. Be4 (19. Rhd1 $11 {remains equal.} Be6 20. Nbd2) 19... Rxb5 $17 20. Qxc8+ (20. a4 $142 Rb6 21. Nbd2) 20... Rxc8 21. Rxc8+ Bf8 22. Rd1 {[#] Loses the game.} (22. Ra8 $17) 22... a4 $1 $19 23. Nc1 Qa6 {Threatens to win with ...Rb4+.} 24. Ke1 Rc5 25. Rb8 {[%emt 0:12:30]} Qa5+ {[%emt 0:12:30]} 26. Ke2 {[%emt 0:00:30][%cal Od1d8]} Qb5+ {[%emt 0:00:30]} 27. Ke1 {[%emt 0:00:30]} Rc7 {[%emt 0:00:30]} 28. Nd3 {[%emt 0:00:30]} Rd7 {[%emt 0:00:30]} 29. Ke2 {[%emt 0:00:30]} Qb6 {[%emt 0:00:30]} ({Weaker is} 29... Qc4 30. Bxg6 Re7 (30... fxg6 $2 {is the wrong capture.} 31. Nfxe5 Qxa2+ 32. Rd2 $18) 31. Rc1 Qxa2+ 32. Ke1 hxg6 (32... fxg6 33. Rcc8 $11) 33. Rcc8 $11) 30. Rc1 {[%emt 0:00:30][%cal Oc1c8] Rcc8! is the strong threat.} Rd8 {[%emt 0:00:30]} 31. Rxb7 {[%emt 0:00:30]} (31. Rxd8 $17 {was the only chance.} Qxd8 32. Bxb7) 31... Qe6 {[%emt 0:00:30] aiming for ...f5.} 32. Bxg6 {[%emt 0:00:30]} (32. Nb4 {is a better chance.}) 32... hxg6 {[%emt 0:00:30]} 33. Nfxe5 {[%emt 0:00:30]} Qxa2+ {[%emt 0:00:30]} 34. Rb2 {[%emt 0:00:30]} Qd5 {[%emt 0:00:30]} 35. Rd2 {[%emt 0:00:30]} a3 {[%emt 0:00:30]} ({Much less strong is} 35... Qxg2 36. Nf3 Qh3 (36... a3 $2 37. Rc3 $19) 37. Rdc2 $19) 36. Nc6 {[%emt 0:00:30]} Ra8 {[%emt 0:00:30][%cal Oa3a2]} 37. Nd4 {[%emt 0:00:30]} Be7 {[%emt 0:00:30][%cal Oa3a2]} 38. Nf4 {[%emt 0:00:30]} Qb7 {[%emt 0:00:30]} 39. Ra2 {[%emt 0:00:30]} Bf6 {[%emt 0:00:30]} 40. Rc3 {[%emt 0:00:30]} (40. Kf1 $142) 40... Bxd4 {[%emt 0:00:30]} 41. exd4 {[%emt 0:00:30]} Qe4+ {[%emt 0:00:30]} 42. Kd2 {[%emt 0:00:30]} Qb1 {[%emt 0:00:30]} 43. Rcc2 {[%emt 0:00:30]} Qb4+ {[%emt 0:00:30]} 44. Kd3 {[%emt 0:00:30]} Re8 {[%emt 0:00:30]} 45. Ne2 {[%emt 0:00:30]} Qb5+ {[%emt 0:00:30]} 46. Rc4 {[%emt 0:00:30]} Rc8 {[%emt 0:00:30]} 47. Rac2 {[%emt 0:00:30] [#]} a2 $1 {[%emt 0:00:30][%mdl 512] Weighted Error Value: White=0.57/Black=0.32.  Mistake:       	White=6     	Black=1      Inaccurate:     	White=2     	Black=2      OK:         	White=13    	Black=12     Best:        	White=2     	Black=5      Strong:       	---       	Black=1} 0-1